Workbook

Sheet Entrada de previsão
B2: Fabricação HLP S/A
B3: Previsão de vendas
B4: Confidencial
B6: Nome da oportunidade | C6: Vendas Agente | D6: Vendas região | E6: Vendas categoria | F6: Valor da previsão | G6: Vendas fase | H6: Probabilidade de venda | I6: Previsão fechar | J6: Previsão ponderada
B7: Adatum Corporation | C7: Rowan Murphy | D7: EUA - Nordeste | E7: Consultoria | F7: R$ 150,000 | G7: Aprovação formal | H7: 90% | I7: =DATE(YEAR(TODAY())+1,1,1) -> 2025-01-01 | J7: =Table_ForecastInput[[#This Row],[Valor da previsão]]*Table_ForecastInput[[#This Row],[Probabilidade de venda]] -> R$ 135,000
B8: Adventure Works | C8: Miho Kojima | D8: EUA - Sudeste | E8: Produtos | F8: R$ 145,200 | G8: Oportunidade | H8: 10% | I8: =DATE(YEAR(TODAY())+1,2,1) -> 2025-02-01 | J8: =Table_ForecastInput[[#This Row],[Valor da previsão]]*Table_ForecastInput[[#This Row],[Probabilidade de venda]] -> R$ 14,520
B9: Alpine Ski House | C9: Cora Thomas | D9: EUA - Centro-Norte | E9: Treinamento | F9: R$ 162,500 | G9: Necessidade identificada | H9: 20% | I9: =DATE(YEAR(TODAY())+1,3,1) -> 2025-03-01 | J9: =Table_ForecastInput[[#This Row],[Valor da previsão]]*Table_ForecastInput[[#This Row],[Probabilidade de venda]] -> R$ 32,500
B10: Museu de Ciências Baldwin | C10: Ellis Turner | D10: EUA - Centro-Sul | E10: Mistura | F10: R$ 147,500 | G10: Patrocínio | H10: 30% | I10: =DATE(YEAR(TODAY())+1,4,1) -> 2025-04-01 | J10: =Table_ForecastInput[[#This Row],[Valor da previsão]]*Table_ForecastInput[[#This Row],[Probabilidade de venda]] -> R$ 44,250
B11: Blue Yonder Airlines | C11: Suma Kini | D11: EUA - Noroeste | E11: Serviços profissionais | F11: R$ 148,000 | G11: Orçamento validado | H11: 40% | I11: =DATE(YEAR(TODAY())+1,5,1) -> 2025-05-01 | J11: =Table_ForecastInput[[#This Row],[Valor da previsão]]*Table_ForecastInput[[#This Row],[Probabilidade de venda]] -> R$ 59,200
B12: City Power & Light | C12: Rowan Murphy | D12: EUA - Sudoeste | E12: Suporte | F12: R$ 175,000 | G12: Análise das necessidades | H12: 50% | I12: =DATE(YEAR(TODAY())+1,6,1) -> 2025-06-01 | J12: =Table_ForecastInput[[#This Row],[Valor da previsão]]*Table_ForecastInput[[#This Row],[Probabilidade de venda]] -> R$ 87,500
B13: Coho Vineyard | C13: Cora Thomas | D13: Canadá - Leste | E13: Mistura | F13: R$ 149,000 | G13: Solução proposta | H13: 60% | I13: =DATE(YEAR(TODAY())+1,7,1) -> 2025-07-01 | J13: =Table_ForecastInput[[#This Row],[Valor da previsão]]*Table_ForecastInput[[#This Row],[Probabilidade de venda]] -> R$ 89,400
B14: Coho Winery | C14: Suma Kini | D14: Canadá - Oeste | E14: Treinamento | F14: R$ 142,000 | G14: Proposta escrita | H14: 70% | I14: =DATE(YEAR(TODAY())+1,8,1) -> 2025-08-01 | J14: =Table_ForecastInput[[#This Row],[Valor da previsão]]*Table_ForecastInput[[#This Row],[Probabilidade de venda]] -> R$ 99,400
B15: Contoso, Ltd. | C15: Cora Thomas | D15: EMEA - França | E15: Mistura | F15: R$ 172,500 | G15: Aprovação verbal | H15: 90% | I15: =DATE(YEAR(TODAY())+1,10,1) -> 2025-10-01 | J15: =Table_ForecastInput[[#This Row],[Valor da previsão]]*Table_ForecastInput[[#This Row],[Probabilidade de venda]] -> R$ 155,250
B16: Contoso Pharmaceuticals | C16: Ellis Turner | D16: EMEA - Alemanha | E16: Produtos | F16: R$ 163,500 | G16: Patrocínio | H16: 20% | I16: =DATE(YEAR(TODAY())+1,11,1) -> 2025-11-01 | J16: =Table_ForecastInput[[#This Row],[Valor da previsão]]*Table_ForecastInput[[#This Row],[Probabilidade de venda]] -> R$ 32,700
B17: Consolidated Messenger | C17: Suma Kini | D17: EMEA - Itália | E17: Produtos | F17: R$ 155,500 | G17: Aprovação formal | H17: 100% | I17: =DATE(YEAR(TODAY())+1,12,1) -> 2025-12-01 | J17: =Table_ForecastInput[[#This Row],[Valor da previsão]]*Table_ForecastInput[[#This Row],[Probabilidade de venda]] -> R$ 155,500
B18: Fabrikam, Inc. | C18: Ellis Turner | D18: EMEA - Outros | E18: Consultoria | F18: R$ 166,000 | G18: Oportunidade | H18: 10% | I18: =DATE(YEAR(TODAY())+1,1,1) -> 2025-01-01 | J18: =Table_ForecastInput[[#This Row],[Valor da previsão]]*Table_ForecastInput[[#This Row],[Probabilidade de venda]] -> R$ 16,600
B19: Fourth Coffee | C19: Cora Thomas | D19: APSA - Ásia | E19: Treinamento | F19: R$ 180,000 | G19: Orçamento validado | H19: 30% | I19: =DATE(YEAR(TODAY())+1,3,1) -> 2025-03-01 | J19: =Table_ForecastInput[[#This Row],[Valor da previsão]]*Table_ForecastInput[[#This Row],[Probabilidade de venda]] -> R$ 54,000
B20: Graphic Design Institute | C20: Miho Kojima | D20: APSA - Pacífico | E20: Serviços | F20: R$ 140,000 | G20: Solução proposta | H20: 60% | I20: =DATE(YEAR(TODAY())+1,5,1) -> 2025-05-01 | J20: =Table_ForecastInput[[#This Row],[Valor da previsão]]*Table_ForecastInput[[#This Row],[Probabilidade de venda]] -> R$ 84,000
B21: Humongous Insurance | C21: Rowan Murphy | D21: APSA - México | E21: Suporte | F21: R$ 155,000 | G21: Patrocínio | H21: 30% | I21: =DATE(YEAR(TODAY())+1,6,1) -> 2025-06-01 | J21: =Table_ForecastInput[[#This Row],[Valor da previsão]]*Table_ForecastInput[[#This Row],[Probabilidade de venda]] -> R$ 46,500
B22: Litware, Inc. | C22: Miho Kojima | D22: APSA - Austrália | E22: Serviços profissionais | F22: R$ 173,200 | G22: Análise das necessidades | H22: 50% | I22: =DATE(YEAR(TODAY())+1,10,1) -> 2025-10-01 | J22: =Table_ForecastInput[[#This Row],[Valor da previsão]]*Table_ForecastInput[[#This Row],[Probabilidade de venda]] -> R$ 86,600
B23: Lucerne Publishing | C23: Suma Kini | D23: APSA - Outros | E23: Serviços | F23: R$ 146,500 | G23: Solução proposta | H23: 60% | I23: =DATE(YEAR(TODAY())+1,12,1) -> 2025-12-01 | J23: =Table_ForecastInput[[#This Row],[Valor da previsão]]*Table_ForecastInput[[#This Row],[Probabilidade de venda]] -> R$ 87,900
B24: Margie's Travel | C24: Ellis Turner | D24: EUA - Nordeste | E24: Suporte | F24: R$ 156,750 | G24: Proposta escrita | H24: 70% | I24: =DATE(YEAR(TODAY())+1,11,1) -> 2025-11-01 | J24: =Table_ForecastInput[[#This Row],[Valor da previsão]]*Table_ForecastInput[[#This Row],[Probabilidade de venda]] -> R$ 109,725
B25: Northwind Traders | C25: Cora Thomas | D25: EUA - Centro-Sul | E25: Serviços Prof. | F25: R$ 162,000 | G25: Aprovação verbal | H25: 90% | I25: =DATE(YEAR(TODAY())+1,2,1) -> 2025-02-01 | J25: =Table_ForecastInput[[#This Row],[Valor da previsão]]*Table_ForecastInput[[#This Row],[Probabilidade de venda]] -> R$ 145,800
B26: Proseware, Inc. | C26: Ellis Turner | D26: Canadá - Leste | E26: Mistura | F26: R$ 157,000 | G26: Aprovação formal | H26: 100% | I26: =DATE(YEAR(TODAY())+1,3,1) -> 2025-03-01 | J26: =Table_ForecastInput[[#This Row],[Valor da previsão]]*Table_ForecastInput[[#This Row],[Probabilidade de venda]] -> R$ 157,000
B27: School of Fine Art | C27: Miho Kojima | D27: EMEA - França | E27: Serviços | F27: R$ 173,000 | G27: Orçamento validado | H27: 40% | I27: =DATE(YEAR(TODAY())+1,4,1) -> 2025-04-01 | J27: =Table_ForecastInput[[#This Row],[Valor da previsão]]*Table_ForecastInput[[#This Row],[Probabilidade de venda]] -> R$ 69,200
B28: Southridge Video | C28: Suma Kini | D28: EMEA - Reino Unido | E28: Mistura | F28: R$ 171,000 | G28: Análise das necessidades | H28: 50% | I28: =DATE(YEAR(TODAY())+1,8,1) -> 2025-08-01 | J28: =Table_ForecastInput[[#This Row],[Valor da previsão]]*Table_ForecastInput[[#This Row],[Probabilidade de venda]] -> R$ 85,500
B29: Tailspin Toys | C29: Rowan Murphy | D29: APSA - Austrália | E29: Produtos | F29: R$ 168,000 | G29: Solução proposta | H29: 60% | I29: =DATE(YEAR(TODAY())+1,9,1) -> 2025-09-01 | J29: =Table_ForecastInput[[#This Row],[Valor da previsão]]*Table_ForecastInput[[#This Row],[Probabilidade de venda]] -> R$ 100,800

Sheet Previsão de vendas
B2: =CompanyName -> Fabricação HLP S/A
B3: Gráfico de previsão
B4: Confidencial
B5: Mês inicial | C5: =DATE(YEAR(TODAY())+1,1,1) -> 2025-01-01
B6: Mês | C6: Mensal previsão | D6: Cumulativo | P6: =B6 -> Mês | Q6: Previsão mensal | R6: Cumulativo
B7: =DATE(YEAR(Starting_Month),MONTH(Starting_Month)+0,1) -> 2025-01-01 | C7: =SUMIFS(Table_ForecastInput[Previsão ponderada],Table_ForecastInput[Previsão fechar],">="&'Previsão de vendas'!B7,Table_ForecastInput[Previsão fechar],"<="&DATE(YEAR('Previsão de vendas'!B7),MONTH('Previsão de vendas'!B7)+1,0)) -> R$ 151,600 | D7: =IF(ISNUMBER(D6),D6+C7,C7) -> R$ 151,600 | P7: =B7 -> 2025-01-01 | Q7: =C7 -> R$ 151,600 | R7: =D7-C7 -> 0
B8: =DATE(YEAR(Starting_Month),MONTH(Starting_Month)+1,1) -> 2025-02-01 | C8: =SUMIFS(Table_ForecastInput[Previsão ponderada],Table_ForecastInput[Previsão fechar],">="&'Previsão de vendas'!B8,Table_ForecastInput[Previsão fechar],"<="&DATE(YEAR('Previsão de vendas'!B8),MONTH('Previsão de vendas'!B8)+1,0)) -> R$ 160,320 | D8: R$ 311,920 | P8: 2025-02-01 | Q8: =C8 -> R$ 160,320 | R8: =D8-C8 -> R$ 151,600
B9: =DATE(YEAR(Starting_Month),MONTH(Starting_Month)+2,1) -> 2025-03-01 | C9: =SUMIFS(Table_ForecastInput[Previsão ponderada],Table_ForecastInput[Previsão fechar],">="&'Previsão de vendas'!B9,Table_ForecastInput[Previsão fechar],"<="&DATE(YEAR('Previsão de vendas'!B9),MONTH('Previsão de vendas'!B9)+1,0)) -> R$ 243,500 | D9: R$ 555,420 | P9: 2025-03-01 | Q9: R$ 243,500 | R9: R$ 311,920
B10: =DATE(YEAR(Starting_Month),MONTH(Starting_Month)+3,1) -> 2025-04-01 | C10: =SUMIFS(Table_ForecastInput[Previsão ponderada],Table_ForecastInput[Previsão fechar],">="&'Previsão de vendas'!B10,Table_ForecastInput[Previsão fechar],"<="&DATE(YEAR('Previsão de vendas'!B10),MONTH('Previsão de vendas'!B10)+1,0)) -> R$ 113,450 | D10: R$ 668,870 | P10: 2025-04-01 | Q10: R$ 113,450 | R10: R$ 555,420
B11: =DATE(YEAR(Starting_Month),MONTH(Starting_Month)+4,1) -> 2025-05-01 | C11: =SUMIFS(Table_ForecastInput[Previsão ponderada],Table_ForecastInput[Previsão fechar],">="&'Previsão de vendas'!B11,Table_ForecastInput[Previsão fechar],"<="&DATE(YEAR('Previsão de vendas'!B11),MONTH('Previsão de vendas'!B11)+1,0)) -> R$ 143,200 | D11: R$ 812,070 | P11: 2025-05-01 | Q11: R$ 143,200 | R11: R$ 668,870
B12: =DATE(YEAR(Starting_Month),MONTH(Starting_Month)+5,1) -> 2025-06-01 | C12: =SUMIFS(Table_ForecastInput[Previsão ponderada],Table_ForecastInput[Previsão fechar],">="&'Previsão de vendas'!B12,Table_ForecastInput[Previsão fechar],"<="&DATE(YEAR('Previsão de vendas'!B12),MONTH('Previsão de vendas'!B12)+1,0)) -> R$ 134,000 | D12: R$ 946,070 | P12: 2025-06-01 | Q12: R$ 134,000 | R12: R$ 812,070
B13: =DATE(YEAR(Starting_Month),MONTH(Starting_Month)+6,1) -> 2025-07-01 | C13: =SUMIFS(Table_ForecastInput[Previsão ponderada],Table_ForecastInput[Previsão fechar],">="&'Previsão de vendas'!B13,Table_ForecastInput[Previsão fechar],"<="&DATE(YEAR('Previsão de vendas'!B13),MONTH('Previsão de vendas'!B13)+1,0)) -> R$ 89,400 | D13: R$ 1,035,470 | P13: 2025-07-01 | Q13: R$ 89,400 | R13: R$ 946,070
B14: =DATE(YEAR(Starting_Month),MONTH(Starting_Month)+7,1) -> 2025-08-01 | C14: =SUMIFS(Table_ForecastInput[Previsão ponderada],Table_ForecastInput[Previsão fechar],">="&'Previsão de vendas'!B14,Table_ForecastInput[Previsão fechar],"<="&DATE(YEAR('Previsão de vendas'!B14),MONTH('Previsão de vendas'!B14)+1,0)) -> R$ 184,900 | D14: R$ 1,220,370 | P14: 2025-08-01 | Q14: R$ 184,900 | R14: R$ 1,035,470
B15: =DATE(YEAR(Starting_Month),MONTH(Starting_Month)+8,1) -> 2025-09-01 | C15: =SUMIFS(Table_ForecastInput[Previsão ponderada],Table_ForecastInput[Previsão fechar],">="&'Previsão de vendas'!B15,Table_ForecastInput[Previsão fechar],"<="&DATE(YEAR('Previsão de vendas'!B15),MONTH('Previsão de vendas'!B15)+1,0)) -> R$ 100,800 | D15: R$ 1,321,170 | P15: 2025-09-01 | Q15: R$ 100,800 | R15: R$ 1,220,370
B16: =DATE(YEAR(Starting_Month),MONTH(Starting_Month)+9,1) -> 2025-10-01 | C16: =SUMIFS(Table_ForecastInput[Previsão ponderada],Table_ForecastInput[Previsão fechar],">="&'Previsão de vendas'!B16,Table_ForecastInput[Previsão fechar],"<="&DATE(YEAR('Previsão de vendas'!B16),MONTH('Previsão de vendas'!B16)+1,0)) -> R$ 241,850 | D16: R$ 1,563,020 | P16: 2025-10-01 | Q16: R$ 241,850 | R16: R$ 1,321,170
B17: =DATE(YEAR(Starting_Month),MONTH(Starting_Month)+10,1) -> 2025-11-01 | C17: =SUMIFS(Table_ForecastInput[Previsão ponderada],Table_ForecastInput[Previsão fechar],">="&'Previsão de vendas'!B17,Table_ForecastInput[Previsão fechar],"<="&DATE(YEAR('Previsão de vendas'!B17),MONTH('Previsão de vendas'!B17)+1,0)) -> R$ 142,425 | D17: R$ 1,705,445 | P17: 2025-11-01 | Q17: R$ 142,425 | R17: R$ 1,563,020
B18: =DATE(YEAR(Starting_Month),MONTH(Starting_Month)+11,1) -> 2025-12-01 | C18: =SUMIFS(Table_ForecastInput[Previsão ponderada],Table_ForecastInput[Previsão fechar],">="&'Previsão de vendas'!B18,Table_ForecastInput[Previsão fechar],"<="&DATE(YEAR('Previsão de vendas'!B18),MONTH('Previsão de vendas'!B18)+1,0)) -> R$ 243,400 | D18: R$ 1,948,845 | P18: 2025-12-01 | Q18: R$ 243,400 | R18: R$ 1,705,445

Sheet Listas
B2: =CompanyName -> Fabricação HLP S/A
B3: Listas de Vendas
B4: Confidencial
B6: Agentes de vendas | C6: Regiões de vendas | D6: Categorias de vendas | E6: Fases de vendas
B7: Rowan Murphy | C7: EUA - Nordeste | D7: Consultoria | E7: Necessidade identificada
B8: Miho Kojima | C8: EUA - Sudeste | D8: Mistura | E8: Oportunidade
B9: Cora Thomas | C9: EUA - Centro-Norte | D9: Produtos | E9: Análise das necessidades
B10: Ellis Turner | C10: EUA - Centro-Sul | D10: Serviços profissionais | E10: Solução proposta
B11: Suma Kini | C11: EUA - Noroeste | D11: Serviços | E11: Proposta escrita
C12: EUA - Sudoeste | D12: Suporte | E12: Aprovação verbal
C13: Canadá - Leste | D13: Treinamento | E13: Aprovação formal
C14: Canadá - Oeste | E14: Orçamento validado
C15: EMEA - França | E15: Patrocínio
C16: EMEA - Alemanha
C17: EMEA - Itália
C18: EMEA - Outros
C19: APSA - Ásia
C20: APSA - Pacífico
C21: APSA - México
C22: APSA - Austrália
C23: APSA - Outros
C24: EMEA - REINO UNIDO
